Cogmind - Beta 14 @@@ ROGUE MODE // 2025.03.20 @ 11:24:26 Player: shockman27 Result: Destroyed by G-47 Trooper with Particle Gun Performance ------------- Evolutions (0) 0 Regions Visited (2) 400 Robots Destroyed (31) 155 Value Destroyed (669) 669 Prototype IDs (0) 0 Alien Tech Used (0) 0 Bonus (0) 0 TOTAL SCORE: 1224 Bonus ------- None Cogmind --------- Core Integrity 0/250 Matter 278/300 Energy 158/160 System Corruption 0% Temperature Cool (9) Movement Walking (120) Location -10/Mines Parts ------- > --- POWER (1) -------- Light Nuclear Core > --- PROPULSION (2) --- Aluminum Leg Aluminum Leg > --- UTILITY (2) ------ Medium Storage Unit Targeting Computer > --- WEAPON (2) ------- Light Assault Rifle Light Assault Rifle > --- INVENTORY (10) --- Aluminum Leg Heat Sink Weight Redist. System EM Pulse Gun Medium Laser Beam Cannon Light Assault Rifle Light Assault Rifle Peak State ------------ > --- POWER ------------ Ion Engine > --- PROPULSION ------- Light Treads Light Treads > --- UTILITY ---------- Small Storage Unit Improved Terrain Scanner > --- WEAPON ----------- Medium Laser Light Assault Rifle > --- INVENTORY -------- Ion Engine Aluminum Leg Aluminum Leg Light Assault Rifle [Rating: 9] Favorites ----------- Power Ion Engine Engine Ion Engine Power Core Light Nuclear Core Propulsion Light Treads Treads Light Treads Leg Aluminum Leg Utility Signal Interpreter Device Improved Terrain Scanner Storage Small Storage Unit Processor Signal Interpreter Weapon Light Assault Rifle Energy Gun Particle Gun Energy Cannon Beam Cannon Ballistic Gun Light Assault Rifle Build | -11 -10 -10 ------- Run | Yrd Mat Min Slots Evolved . | . . . Power . | . . . Propulsion . | . . . Utility . | . . . Weapon . | . . . Parts Attached 27 | 8 16 3 Power 4 | 1 2 1 Engine 3 | 1 2 . Core 1 | . . 1 Reactor . | . . . Propulsion 8 | 3 5 . Treads 3 | 2 1 . Leg 5 | 1 4 . Wheel . | . . . Hover . | . . . Flight . | . . . Utility 9 | 2 6 1 Device 1 | 1 . . Storage 6 | 1 5 . Processor 2 | . 1 1 Hackware . | . . . Protection . | . . . Artifact . | . . . Weapon 6 | 2 3 1 Energy Gun 2 | 1 1 . Energy Cannon 1 | . 1 . Ballistic Gun 3 | 1 1 1 Ballistic Cannon . | . . . Launcher . | . . . Special Weapon . | . . . Impact Weapon . | . . . Slashing Weapon . | . . . Piercing Weapon . | . . . Special Melee Weapon . | . . . Unidentified Prototypes . | . . . Parts Lost 5 | . 3 2 Power 2 | . 1 1 Propulsion 1 | . 1 . Utility . | . . . Weapon 2 | . 1 1 Highest Loss Streak 1 | . 1 1 To Critical Strikes . | . . . Average Slot Usage (%) 99 | . 99 99 Engine 11 | . 13 3 Core 2 | . . 10 Treads 17 | . 22 . Leg 10 | . 5 28 Storage 14 | . 14 14 Processor 13 | . 13 14 Energy Gun 2 | . 3 . Energy Cannon 9 | . 11 . Ballistic Gun 16 | . 13 27 Peak Build Rating 9 | 9 9 9 Average Rating 7 | 5 7 8 On Entrance 6 | . 9 9 Naked Turns . | . . . Heaviest Build 89 | 14 89 17 Greatest Support 40 | 40 40 20 Greatest Overweight (x) 2 | 1 2 . Average Overweight (x) . | . . . Largest Inventory Capacity 25 | 8 25 10 Average Capacity 8 | 7 8 10 Most Carried 10 | 4 10 8 Average Carried 7 | 3 8 7 Final Capacity 10 | 8 10 10 Final Carried 8 | 4 8 8 Class Distribution -------------------- 76% | Mutant 23% | Scavenger-Mutant Dominant Class ---------------- Mutant | -10/Materials Scavenger-Mutant | -10/Mines Resources | -11 -10 -10 ----------- Run | Yrd Mat Min Matter Collected 619 | 288 282 49 Remotely . | . . . Salvage Created 1048 | 126 793 129 Parts 63 | 8 43 12 Haulers Intercepted 2 | . 2 . Recyclers Shooed 2 | . 2 . Parts Field Recycled . | . . . Retrieved Matter . | . . . Parts Self-Destructed . | . . . Prevented . | . . . Kills | -11 -10 -10 ------- Run | Yrd Mat Min Combat Hostiles Destroyed 22 | . 15 7 Guns 12 | . 5 7 Cannons 10 | . 10 . Classes Destroyed 6 | 2 4 . Tunneler 2 | 2 . . Hauler 2 | . 2 . Recycler 3 | 1 2 . Watcher 2 | . 2 . Swarmer 9 | . 3 6 Grunt 13 | . 12 1 Best Kill Streak 3 | 3 3 3 Combat Bots Only 3 | . 3 3 Max Kills in Single Turn 1 | 1 1 1 Gunslinging . | . . . Exploded . | . . . Melee . | . . . Uniques/NPCs Destroyed . | . . . Combat | -11 -10 -10 -------- Run | Yrd Mat Min Hostile Shots Fired 149 | . 84 65 Missed 35 | . 18 17 Damage Taken 1285 | . 858 427 Core 262 | . 141 121 Absorbed by Shields . | . . . Regen/Repaired (Parts) 52 | . 52 . Core Remaining (%) 100 | 100 . . Volleys Fired 139 | 8 101 30 Largest 2 | 2 2 2 Hottest 125 | 70 125 85 Shots Fired 272 | 16 200 56 Gun 202 | 16 130 56 Cannon 70 | . 70 . Launcher . | . . . Special . | . . . Kinetic 155 | 8 96 51 Thermal 117 | 8 104 5 Explosive . | . . . Electromagnetic . | . . . Robot Hit Streak 15 | 5 15 6 Robot Miss Streak 6 | 3 4 6 Penetration Max . | . . . Secondary Targets 3 | . . 3 Max Gunslinging Chain 1 | . . 1 Shots Hit Robots 152 | 10 111 31 Core Hits 55 | 4 40 11 Critical Kills . | . . . Critical Parts Destroyed 1 | . 1 . Critical Strikes 1 | . 1 . Destroy 1 | . 1 . Melee Attacks . | . . . Impact . | . . . Slashing . | . . . Piercing . | . . . Sneak Attacks . | . . . Combat Hostiles . | . . . Follow-up Attacks . | . . . Damage Inflicted 1786 | 115 1413 258 Guns 1087 | 115 714 258 Cannons 699 | . 699 . Explosions . | . . . Melee . | . . . Ramming . | . . . Kinetic 726 | 40 443 243 Thermal 1060 | 75 970 15 Explosive . | . . . Electromagnetic . | . . . Impact . | . . . Slashing . | . . . Piercing . | . . . Highest Corruption . | . . . Average Corruption . | . . . Corruption Purged . | . . . Corruption Blocked . | . . . Overload Shots . | . . . Overflow Damage 12 | . 12 . Projectiles 12 | . 12 . Explosions . | . . . Melee . | . . . Knockbacks . | . . . Impact . | . . . Kinetic . | . . . Secondary . | . . . Self-Inflicted Damage . | . . . Shots . | . . . Rammed . | . . . Targets Rammed . | . . . Kicked . | . . . Crushed . | . . . Highest Temperature 474 | 90 474 140 Average Temperature 110 | 38 121 45 Received Heat Transfer 486 | . 426 60 Effects 9 | . 9 . Shutdowns 2 | . 2 . Energy Bleed 5 | . 5 . Matter Decay 1 | . 1 . Damage (minor) 1 | . 1 . Siege Activations . | . . . Robots Corrupted . | . . . Combat Hostiles . | . . . Parts Fried . | . . . Impact Corruptions . | . . . Robots Melted . | . . . Combat Hostiles . | . . . Parts Melted 4 | . 4 . Heat Transferred 2405 | 222 2146 37 Parts Sabotaged . | . . . Parts Stolen . | . . . Parts Stripped . | . . . Power Chain Reactions . | . . . Alert | -11 -10 -10 ------- Run | Yrd Mat Min Peak Influence 207 | 15 187 207 Initial 72 | . 9 72 Average 67 | 4 60 108 Maximum Alert Level 1 | . . 1 Low Security (%) 93 | 100 100 67 Level 1 6 | . . 32 Level 2 . | . . . Level 3 . | . . . Level 4 . | . . . Level 5 . | . . . High Security . | . . . Max Security . | . . . Squads Dispatched 3 | . 3 . Investigation 1 | . 1 . Extermination . | . . . Reinforcement 2 | . 2 . Assault . | . . . Garrison . | . . . Intercept . | . . . Searches Triggered . | . . . Construction Impeded . | . . . Haulers Reinforced . | . . . Active Scanning Responses . | . . . Cargo Convoy Interrupts . | . . . Stealth | -11 -10 -10 --------- Run | Yrd Mat Min Distress Signals 2 | . 2 . Communications Jammed . | . . . Distress Signals . | . . . Times Spotted 44 | . 36 8 Peak Tracking Total 5 | . 5 3 Tactical Retreats 3 | . 3 . Traps | -11 -10 -10 ------- Run | Yrd Mat Min Traps Triggered 2 | . 2 . Indirectly . | . . . Trap Hack Attempts . | . . . Triggered . | . . . Disarmed . | . . . Reprogrammed 1 | . 1 . Reused . | . . . Traps Extracted . | . . . Installed . | . . . Triggered . | . . . Machines | -11 -10 -10 ---------- Run | Yrd Mat Min Machines Disabled 3 | . 3 . Max in Single Turn 1 | . 1 . Machines Repaired . | . . . Machines Dismantled . | . . . Machines Sabotaged . | . . . Overloaded Fab Kills . | . . . Hacking | -11 -10 -10 --------- Run | Yrd Mat Min Machines Accessed 6 | . 6 . Terminals 5 | . 5 . Fabricators . | . . . Repair Stations 1 | . 1 . Recycling Units . | . . . Scanalyzers . | . . . Garrison Access . | . . . Total Hacks 17 | . 17 . Successful 9 | . 9 . Failed 8 | . 8 . Catastrophic 1 | . 1 . Database Lockouts . | . . . Manual 3 | . 3 . Terminals 13 | . 13 . Fabricators . | . . . Repair Stations 4 | . 4 . Recycling Units . | . . . Scanalyzers . | . . . Garrison Access . | . . . Terminal Hacks 6 | . 6 . Alert Level 1 | . 1 . Unreport Threat 1 | . 1 . Locate Traps 2 | . 2 . Reprogram Traps 1 | . 1 . Zone Layout 1 | . 1 . Fabricator Hacks . | . . . Repair Station Hacks 3 | . 3 . Scan Component 2 | . 2 . Repair 1 | . 1 . Recycling Unit Hacks . | . . . Scanalyzer . | . . . Garrison Access Hacks . | . . . Unauthorized Hacks . | . . . Terminals . | . . . Fabricators . | . . . Repair Stations . | . . . Recycling Units . | . . . Scanalyzers . | . . . Garrison Access . | . . . Data Cores Recovered . | . . . Used . | . . . Hacking Detections 5 | . 5 . Full Trace Events 2 | . 2 . Feedback Events . | . . . Feedback Blocked . | . . . Robot Schematics Acquired . | . . . Robots Built . | . . . Authchips . | . . . Time . | . . . Total Robot Build Rating . | . . . Part Schematics Acquired . | . . . Parts Built . | . . . Authchips . | . . . Time . | . . . Total Part Build Rating . | . . . Parts Repaired 1 | . 1 . Time 26 | . 26 . Parts Recycled . | . . . Recycled Matter . | . . . Retrieved Matter . | . . . Retrieved Components . | . . . Parts Scanalyzed . | . . . Part Schematics Acquired . | . . . Parts Damaged . | . . . Bothacking | -11 -10 -10 ------------ Run | Yrd Mat Min Used RIF Installer . | . . . Robots Hacked . | . . . Non-combat . | . . . Combat . | . . . Robot Hacks Applied . | . . . Relay Couplers Released . | . . . Fabnet Peak Effective % . | . . . Robots Rewired . | . . . Allies Hacked . | . . . Hacks Repelled . | . . . Allies | -11 -10 -10 -------- Run | Yrd Mat Min Total Allies . | . . . Largest Group . | . . . Highest-Rated Group . | . . . Highest-Rated Ally . | . . . Total Orders . | . . . Ally Attacks . | . . . Total Damage . | . . . Kills . | . . . Allies Corrupted . | . . . Allies Melted . | . . . Intel | -11 -10 -10 ------- Run | Yrd Mat Min Robot Analysis Total . | . . . Derelict Logs Recovered 1 | . . 1 Drone Launches . | . . . Drone Recoveries . | . . . Exploration | -11 -10 -10 ------------- Run | Yrd Mat Min Turns Passed 3465 | 148 2639 678 Spaces Moved 1766 | 69 1247 450 Core 2 | 2 . . Treads 1039 | 62 977 . Legs 725 | 5 270 450 Wheels . | . . . Hover . | . . . Flight . | . . . Fastest Speed 50 | 50 120 120 Average Speed 146 | 158 155 120 Slowest Speed 320 | 190 320 120 Overloaded Moves . | . . . Propulsion Burnouts . | . . . Robots Hopped . | . . . Cave-ins Triggered . | . . . Exploration Rate (%) 60 | 5 97 78 Regions Visited 2 Branch Regions 1 Pre-discovered Areas . | . . . Known Exits Taken 1 | . 1 . Unknown Exits Taken 1 | 1 . . Scrap Searched 1 | . . 1 Spaces Dug . | . . . Terrain Destroyed . | . . . Melee . | . . . Projectile . | . . . AOE . | . . . Terrain Rammed . | . . . Walls Destroyed . | . . . Machines Disabled . | . . . Actions | -11 -10 -10 --------- Run | Yrd Mat Min Total 2399 | 89 1766 544 Wait 441 | 1 382 58 Move 1764 | 68 1246 450 Hop . | . . . Pick Up 14 | 4 8 2 Fast Attach 15 | 7 7 1 Attach 5 | . 3 2 Detach 4 | . 3 1 Swap 7 | 1 6 . Drop 10 | . 10 . Fire 139 | 8 101 30 Melee . | . . . Ram . | . . . Kick . | . . . Crush . | . . . Escape Stasis . | . . . Rewire . | . . . Trap . | . . . Miscellaneous . | . . . Route ------- -11/Scrapyard -10/Materials (discovered 5 exits: *Mat x3 / *Min x2) -10/Mines (discovered 1 exit: [*Exi]) History --------- Turn | Location | Event 33 | -11/Scrapyard | Discovered new exit (range 16) 149 | -11/Scrapyard | Entered Materials 310 | -10/Materials | Discovered new exit (range 15) 314 | -10/Materials | Build established: Mutant 336 | -10/Materials | Identified exit to Materials 550 | -10/Materials | Discovered new exit (range 10) 567 | -10/Materials | Identified exit to Mines 943 | -10/Materials | Discovered exit to Materials (range 16) 1040 | -10/Materials | Discovered exit to Mines (range 16) 1471 | -10/Materials | Discovered exit to Materials (range 9) 2536 | -10/Materials | Repaired Ion Engine 2558 | -10/Materials | Build established: Scavenger-Mutant 2566 | -10/Materials | Core integrity fell below 50% 2788 | -10/Materials | Entered Mines 2891 | -10/Mines | Build established: Mutant 2953 | -10/Mines | Core integrity fell below 20% 3126 | -10/Mines | Deemed a non-threat by the Exiles lab entrance 3127 | -10/Mines | Discovered new exit (range 5) 3282 | -10/Mines | Build established: Scavenger-Mutant 3466 | -10/Mines | Destroyed by G-47 Trooper with Particle Gun Last Messages --------------- 02966_ Ion Engine destroyed. 02967_ S-10 Pest destroyed. 02971_ Acquired 12 matter. 02973_ Acquired 13 matter. 02978_ Acquired Lgt. Assault Rifle. 03014_ Discarded Signal Interpreter. 03023_ U-05 Engineer lays Concrete. 03126_ "No threat detected, you may enter." 03127_ EXIT=FOUND 03209_ K-01 Serf collects debris. 03262_ Searching scrap... 03262_ Found EM Pulse Gun. 03262_ Found Cargo Storage Unit. 03262_ Found Sml. Laser. 03262_ Found Terrain Scanner. 03262_ Found 43 Matter. 03263_ Acquired 10 matter. 03265_ Acquired EM Pulse Gun. 03463_ G-34 Mercenary destroyed. 03463_ Switching to secondary target: G-47 Trooper. Map ----- +----------------------------------------------------+ | | | | | | | | | | | | | ????????????????????????????????????????????????? | | ????????????????????????????????????????????????? | | ?????????????????????###################????????? | | ?????????????????????# ????????? | | ??????????????????#### ?????????? | | ??????????????????# """ """????????????? | | ??????????????????# ## """ """????????????? | | ??????????????????# ## = """ """ """????????? | | ??????????????????# %[ = * #??????? | | ??????############# ## """%""" """ """????????? | | ??????# ## """=""" """ ???????????? | | ??????# ############# """ """ """????????????? | | ??????# #???????????# ???????????? | | ?????## ##??????????################???????????? | | ????## #####?????????????????????????????????? | | ?#### ## ########??????????????????????????? | | ?# #??????????????????????????? | | ?# ## ######?????????????????????? | | ?# ## ######### #?????????????????????? | | ?# ### ##???????######@#?????????????????????? | | ?# #?# ##?????????????#=#?????????????????????? | | ?# #?# ##?????????????#%###### #????????? | | ## ### ##????????????#g $ #????????? | | #????????????# #????????? | | ####### #????????????######## #????????? | | ??????## ###????????????????????????####????????? | | ???????# ######################?????????????????? | | ???????# #?????????????????? | | ???????###################### #?????###?????????? | | ????????????????????????????# ###### #?????????? | | ?????????????################ # #??????????? | | ????????????## ![ ##??????????? | | ????????????# %! ##???????????? | | ??????####### ############## #????????????? | | ####### ## #????????????## #???????????? | | #?????????????# #???????????? | | ##?????????????# ##???????????? | | ## ##?????????????# #????????????? | | ### ###???????????# ????????????? | | #?## ????????# ???????????? | | #??## ##?????????## ??????????? | | #???## ### ##???????????## #?????????? | | #????# #?## # ???????????# #?????????? | | #????# #??# ## ????????????? #?????????? | +----------------------------------------------------+ Best States ------------- Heat Dissipation 25 Energy Generation 14 Energy Capacity 250 Matter Stores 300 Matter Capacity 300 Sight Range 16 Terrain Scan Range 16 Terrain Scan Density 10 Evasion (%) 55 Targeting Accuracy 5 Recoil Reduction 2 Item Schematics ----------------- None Robot Schematics ------------------ None Fabricated ------------ Nothing Alien Tech Used ----------------- None Achievements -------------- Everything Is Under Control Challenges ------------ None Game ------ Seed TitaniumAblativeCompactor Manual? 0 Play Time 00:27:19 Cumulative 18.6 hours Start 2025.03.20 @ 10:55:15 End 2025.03.20 @ 11:24:26 Sessions 1 Manual Loads 0 Difficulty Rogue Special Mode None Game No. 11 Rogue 7 Adventurer 4 Explorer 0 Win Type - Total 0 Types 0/0/0/0/0/0/0/0/0 Lore% 6 Gallery% 12 Achievement% 16 Wizard Run 0 Options --------- Layout 0 ASCII 0 Keyboard 1 Movement Vi Keybinds 0 Fullscreen 1 Font 24/Crisp Map View 76x50 Zoom Use 0% Tactical HUD 1 Map Filters NONE Filters NONE Steam 1 RUN: 4cc8312e-9516-4b36-93e6-8adc4cb65063